fUSD/lending_fUSD_20250710
["ID","MTS","AMOUNT","RATE_DAILY","PERIOD"]
[371029386,1752190244076,-153.0,0.00039118,30]
[371029388,1752190244086,-150.0,0.00039119,2]
[371029390,1752190244095,-153.0,0.0003912,30]
[371029392,1752190244105,-153.0,0.0003912,30]
[371029394,1752190244114,-153.0,0.0003912,30]
[371029396,1752190244123,-153.0,0.0003912,30]
[371029398,1752190244132,-153.0,0.0003912,30]
[371029400,1752190244141,-153.0,0.0003912,30]
[371029402,1752190244151,-153.0,0.0003912,30]
[371029404,1752190244160,-153.0,0.0003912,30]
[371029406,1752190244170,-153.0,0.0003912,30]
[371029408,1752190244179,-150.0,0.00039135,2]
[371029411,1752190244198,-150.0,0.00039135,2]
[371029413,1752190244208,-4000.0,0.00039137,8]
[371029415,1752190244219,-150.0,0.00039142,2]
[371029417,1752190244230,-150.0,0.00039182,2]
[371029419,1752190244239,-571.37275958,0.000392,30]
[371029423,1752190244264,-541.65,0.000392,30]
[371029426,1752190244283,-1810.54232042,0.000392,30]
[371029428,1752190244295,-323.46915031,0.000392,30]
[371029430,1752190244308,-3459.66126,0.000392,30]
[371029437,1752190244374,-7801.07538932,0.000392,30]
[371029438,1752190244383,-5000.0,0.00039235,2]
[371029439,1752190244393,-179.36054508,0.00039255,2]
[371029440,1752190244402,-3587.42113025,0.0003926,8]
[371029523,1752190245255,-412.57886975,0.0003926,8]
[371029525,1752190245266,-150.0,0.0003929,2]
[371029527,1752190245275,-292.122,0.00039311,2]
[371029529,1752190245285,-786.44447583,0.00039314,3]
[371029532,1752190245308,-28308.37425547,0.00039314,3]
[371029534,1752190245319,-343.2,0.00039324,2]
[371029537,1752190245328,-150.57,0.00039324,2]
[371029539,1752190245338,-150.84,0.00039324,2]
[371029541,1752190245348,-1168.88,0.00039324,2]
[371029543,1752190245357,-356.59,0.00039324,2]
[371029545,1752190245367,-151.6,0.00039324,2]
[371029546,1752190245376,-457.32,0.00039324,2]
[371029549,1752190245386,-151.76,0.00039324,2]
[371029551,1752190245395,-356.59,0.00039324,2]
[371029553,1752190245405,-150.0,0.00039324,2]
[371029555,1752190245414,-164.26,0.00039324,2]
[371029556,1752190245423,-300.0,0.00039324,2]
[371029558,1752190245432,-457.32,0.00039324,2]
[371029560,1752190245441,-457.32,0.00039324,2]
[371029562,1752190245451,-150.0,0.00039324,2]
[371029564,1752190245460,-150.0,0.00039324,2]
[371029566,1752190245470,-457.32,0.00039324,2]
[371029568,1752190245479,-164.31,0.00039324,2]
[371029571,1752190245488,-150.0,0.00039324,2]
[371029573,1752190245500,-355.58,0.00039324,2]
[371029575,1752190245510,-164.31,0.00039324,2]
[371029577,1752190245521,-150.0,0.00039324,2]
[371029579,1752190245530,-164.31,0.00039324,2]
[371029581,1752190245540,-793.28,0.00039324,2]
[371029583,1752190245550,-150.0,0.00039324,2]
[371029585,1752190245560,-167.55,0.00039324,2]
[371029587,1752190245570,-914.31,0.00039324,2]
[371029589,1752190245581,-164.22,0.00039324,2]
[371029591,1752190245595,-150.0,0.00039325,2]
[371029593,1752190245605,-150.0,0.00039332,2]
[371029595,1752190245615,-150.0,0.00039333,2]
[371029597,1752190245625,-150.0,0.00039354,2]
[371029599,1752190245635,-150.0,0.00039359,2]
[371029601,1752190245644,-4000.0,0.00039383,8]
[371029603,1752190245654,-17722.9208423,0.0003939,3]
[371029605,1752190245666,-150.0,0.00039398,2]
[371029607,1752190245675,-600.0,0.000394,14]
[371029609,1752190245684,-150.0,0.00039414,2]
[371029612,1752190245694,-150.0,0.00039434,2]
[371029615,1752190245703,-500.0,0.00039452,7]
[371029618,1752190245713,-500.0,0.00039452,7]
[371029620,1752190245722,-500.0,0.00039452,7]
[371029622,1752190245732,-239.24,0.00039483,120]
[371029624,1752190245742,-150.0,0.00039491,2]
[371029626,1752190245752,-150.0,0.00039495,2]
[371029628,1752190245762,-1200.0,0.000395,14]
[371029631,1752190245771,-4000.0,0.00039507,8]
[371029633,1752190245781,-150.0,0.00039535,2]
[371029635,1752190245790,-150.0,0.00039541,2]
[371029637,1752190245799,-150.0,0.00039559,2]
[371029639,1752190245808,-150.0,0.00039563,2]
[371029640,1752190245818,-150.0,0.00039571,2]
[371029642,1752190245827,-150.0,0.00039579,2]
[371029645,1752190245837,-1800.0,0.000396,14]
[371029647,1752190245846,-266.10305,0.000396,2]
[371029649,1752190245855,-4000.0,0.0003963,8]
[371029651,1752190245865,-150.0,0.00039636,2]
[371029653,1752190245874,-501.0,0.00039671,24]
[371029655,1752190245884,-150.0,0.00039684,2]
[371029657,1752190245893,-2400.0,0.000397,14]
[371029659,1752190245903,-4782.18,0.000397,22]
[371029661,1752190245912,-150.0,0.00039719,2]
[371029663,1752190245922,-150.0,0.00039728,2]
[371029665,1752190245932,-150.0,0.00039731,2]
[371029667,1752190245941,-2000.0,0.00039748,31]
[371029669,1752190245952,-150.0,0.00039749,2]
[371029671,1752190245962,-4000.0,0.00039753,8]
[371029673,1752190245971,-150.0,0.00039771,2]
[371029675,1752190245983,-152.0,0.00039782,5]
[371029677,1752190245993,-727.2917353,0.00039789,2]
[371029679,1752190246002,-2000.0,0.000398,3]
[371029681,1752190246012,-3000.0,0.000398,14]
[371029683,1752190246021,-150.0,0.00039821,2]
[371029685,1752190246030,-150.0,0.00039832,2]
[371029687,1752190246040,-150.0,0.00039841,2]
[371029689,1752190246050,-150.0,0.00039846,2]
[371029691,1752190246059,-150.0,0.00039869,2]
[371029693,1752190246070,-155.0,0.00039871,90]
[371029695,1752190246080,-4000.0,0.00039877,8]
[371029697,1752190246090,-150.0,0.00039879,2]
[371029699,1752190246099,-265.8006491,0.00039879,2]
[371029701,1752190246109,-150.0,0.00039887,2]
[371029703,1752190246118,-29094.8187313,0.0003989,3]
[371029705,1752190246127,-35445.8416847,0.0003989,3]
[371029708,1752190246141,-157.59991505,0.000399,13]
[371029710,1752190246150,-164.19140862,0.000399,2]
[371029712,1752190246159,-3060.43783739,0.000399,15]
[371029714,1752190246169,-600.0,0.000399,14]
[371029716,1752190246179,-995.88680199,0.000399,15]
[371029718,1752190246188,-7379.46073639,0.000399,2]
[371029720,1752190246198,-3000.0,0.000399,30]
[371029722,1752190246208,-37435.86596226,0.000399,2]
[371029724,1752190246218,-161.33104862,0.000399,90]
[371029726,1752190246228,-419.30589097,0.000399,2]
[371029728,1752190246243,-179.36054508,0.000399,2]
[371029731,1752190246253,-428.56664714,0.000399,2]
[371029733,1752190246263,-150.0,0.00039931,2]
[371029735,1752190246273,-150.0,0.00039936,2]
[371029737,1752190246283,-150.0,0.0003994,2]
[371029739,1752190246293,-150.0,0.00039954,2]
[371029741,1752190246303,-29094.8187313,0.00039963,3]
[371029743,1752190246313,-35445.8416847,0.00039963,3]
[371029745,1752190246322,-85057.0,0.00039973,120]
[371029747,1752190246332,-150.92588711,0.00039979,2]
[371029749,1752190246342,-150.0,0.00039979,2]
[371029751,1752190246352,-162.48185364,0.00039981,30]
[371029753,1752190246362,-58189.6374627,0.00039982,3]
[371029755,1752190246372,-35445.8416847,0.00039982,3]
[371029757,1752190246381,-150.0,0.00039983,2]
[371029759,1752190246391,-150.0,0.00039985,2]
[371029761,1752190246400,-192.29961792,0.00039988,120]
[371029763,1752190246410,-58189.6374627,0.00039989,3]
[371029765,1752190246420,-70891.6833694,0.00039989,3]
[371029768,1752190246430,-378232.643508,0.0003999,3]
[371029770,1752190246439,-319012.575162,0.0003999,3]
[371029772,1752190246448,-415.4088845,0.00039991,2]
[371029774,1752190246458,-25989.1366665,0.00039991,2]
[371029776,1752190246468,-31397.1528217,0.00039991,2]
[371029778,1752190246477,-36805.1689769,0.00039991,2]
[371029780,1752190246489,-42213.1851321,0.00039991,2]
[371029782,1752190246498,-47621.2012874,0.00039991,2]
[371029784,1752190246511,-5024.00199282,0.00039991,2]
[371029786,1752190246524,-459.299616,0.00039991,2]
[371029789,1752190246540,-1738.4367,0.00039991,2]
[371029791,1752190246553,-45807.47913378,0.00039991,2]
[371029793,1752190246562,-850.0096438,0.00039992,2]
[371029795,1752190246572,-500.0,0.00039999,30]
[371029797,1752190246582,-500.0,0.00039999,30]
[371029799,1752190246592,-300.0,0.00039999,10]
[371029801,1752190246601,-254.54629375,0.00039999,31]
[371029803,1752190246610,-804.67,0.00039999,2]
[371029805,1752190246620,-150.0,0.00039999,2]
[371029807,1752190246629,-500.0,0.00039999,31]
[371029809,1752190246638,-300.0,0.00039999,31]
[371029811,1752190246647,-600.0,0.00039999,31]
[371029813,1752190246657,-518.5,0.00039999,31]
[371029815,1752190246667,-300.0,0.00039999,31]
[371029818,1752190246677,-151.0,0.00039999,31]
[371029820,1752190246686,-200.0,0.00039999,31]
[371029822,1752190246696,-600.0,0.00039999,31]
[371029824,1752190246705,-537.6845,0.00039999,31]
[371029826,1752190246715,-300.0,0.00039999,31]
[371029828,1752190246724,-162.174,0.00039999,31]
[371029830,1752190246735,-151.0,0.00039999,31]
[371029832,1752190246745,-207.4,0.00039999,31]
[371029834,1752190246755,-600.0,0.00039999,31]
[371029836,1752190246764,-557.5788265,0.00039999,31]
[371029838,1752190246774,-151.0,0.00039999,31]
[371029840,1752190246783,-300.0,0.00039999,31]
[371029842,1752190246793,-3888.0,0.00039999,31]
[371029844,1752190246802,-600.0,0.00039999,31]
[371029846,1752190246812,-578.20924308,0.00039999,31]
[371029848,1752190246821,-151.0,0.00039999,31]
[371029850,1752190246830,-300.0,0.00039999,31]
[371029852,1752190246840,-215.0738,0.00039999,31]
[371029854,1752190246849,-300.0,0.00039999,31]
[371029856,1752190246858,-151.0,0.00039999,31]
[371029858,1752190246868,-600.0,0.00039999,31]
[371029860,1752190246877,-4031.856,0.00039999,31]
[371029862,1752190246887,-151.0,0.00039999,31]
[371029864,1752190246896,-300.0,0.00039999,31]
[371029867,1752190246906,-223.0315306,0.00039999,31]
[371029869,1752190246915,-300.0,0.00039999,31]
[371029871,1752190246925,-599.60298507,0.00039999,31]
[371029873,1752190246934,-4181.034672,0.00039999,31]
[371029875,1752190246943,-600.0,0.00039999,31]
[371029877,1752190246953,-151.0,0.00039999,31]
[371029879,1752190246962,-151.0,0.00039999,31]
[371029881,1752190246971,-300.0,0.00039999,31]
[371029883,1752190246980,-231.28369723,0.00039999,31]
[371029885,1752190246990,-300.0,0.00039999,31]
[371029887,1752190246999,-621.78829552,0.00039999,31]
[371029889,1752190247008,-4335.73295486,0.00039999,31]
[371029891,1752190247018,-600.0,0.00039999,31]
[371029893,1752190247028,-151.0,0.00039999,31]
[371029895,1752190247037,-151.0,0.00039999,31]
[371029897,1752190247047,-151.0,0.00039999,31]
[371029899,1752190247056,-239.84119403,0.00039999,31]
[371029901,1752190247066,-300.0,0.00039999,31]
[371029903,1752190247075,-300.0,0.00039999,31]
[371029905,1752190247086,-4496.15507419,0.00039999,31]
[371029907,1752190247096,-644.79446245,0.00039999,31]
[371029909,1752190247106,-600.0,0.00039999,31]
[371029911,1752190247115,-151.0,0.00039999,31]
[371029913,1752190247124,-151.0,0.00039999,31]
[371029915,1752190247134,-248.71531821,0.00039999,31]
[371029917,1752190247143,-300.0,0.00039999,31]
[371029919,1752190247152,-151.0,0.00039999,31]
[371029921,1752190247162,-4662.51281194,0.00039999,31]
[371029923,1752190247171,-151.0,0.00039999,31]
[371029925,1752190247180,-300.0,0.00039999,31]
[371029927,1752190247190,-600.0,0.00039999,31]
[371029929,1752190247200,-151.0,0.00039999,31]
[371029932,1752190247218,-257.91778498,0.00039999,31]
[371029935,1752190247230,-300.0,0.00039999,31]
[371029937,1752190247241,-151.0,0.00039999,31]
[371029939,1752190247251,-300.0,0.00039999,31]
[371029941,1752190247262,-151.0,0.00039999,31]
[371029943,1752190247273,-151.0,0.00039999,31]
[371029945,1752190247283,-600.0,0.00039999,31]
[371029947,1752190247293,-4835.02578598,0.00039999,31]
[371029949,1752190247303,-267.46074303,0.00039999,31]
[371029951,1752190247314,-300.0,0.00039999,31]
[371029954,1752190247324,-151.0,0.00039999,31]
[371029956,1752190247334,-5013.92174006,0.00039999,31]
[371029958,1752190247344,-277.35679052,0.00039999,31]
[371029960,1752190247353,-300.0,0.00039999,31]
[371029962,1752190247363,-300.0,0.00039999,31]
[371029964,1752190247374,-5199.43684444,0.00039999,31]
[371029966,1752190247384,-287.61899177,0.00039999,31]
[371029968,1752190247394,-300.0,0.00039999,31]
[371029970,1752190247404,-300.0,0.00039999,31]
[371029972,1752190247413,-160.0,0.00039999,31]
[371029974,1752190247423,-151.0,0.00039999,31]
[371029976,1752190247433,-298.26089446,0.00039999,31]
[371029978,1752190247444,-300.0,0.00039999,31]
[371029980,1752190247453,-160.0,0.00039999,31]
[371029982,1752190247463,-300.0,0.00039999,31]
[371029984,1752190247473,-151.0,0.00039999,31]
[371029987,1752190247483,-151.0,0.00039999,31]
[371029989,1752190247493,-309.29654756,0.00039999,31]
[371029990,1752190247506,-300.0,0.00039999,31]
[371029992,1752190247516,-160.0,0.00039999,31]
[371029995,1752190247526,-300.0,0.00039999,31]
[371029997,1752190247535,-151.0,0.00039999,31]
[371029999,1752190247546,-151.0,0.00039999,31]
[371030001,1752190247555,-320.74051982,0.00039999,31]
[371030003,1752190247564,-300.0,0.00039999,31]
[371030005,1752190247575,-500.0,0.00039999,31]
[371030007,1752190247585,-160.0,0.00039999,31]
[371030009,1752190247595,-300.0,0.00039999,31]
[371030011,1752190247604,-151.0,0.00039999,31]
[371030012,1752190247614,-151.0,0.00039999,31]
[371030013,1752190247623,-459.59798271,0.00039999,31]
[371030014,1752190247735,-5391.81600769,0.00039999,31]
[371030016,1752190247744,-500.0,0.00039999,31]
[371030018,1752190247754,-300.0,0.00039999,31]
[371030020,1752190247763,-160.0,0.00039999,31]
[371030022,1752190247773,-300.0,0.00039999,31]
[371030024,1752190247782,-151.0,0.00039999,31]
[371030026,1752190247792,-151.0,0.00039999,31]
[371030028,1752190247801,-500.0,0.00039999,31]
[371030030,1752190247810,-300.0,0.00039999,31]
[371030032,1752190247819,-160.0,0.00039999,31]
[371030034,1752190247829,-300.0,0.00039999,31]
[371030035,1752190247838,-151.0,0.00039999,31]
[371030038,1752190247848,-151.0,0.00039999,31]
[371030039,1752190247857,-5591.31319997,0.00039999,31]
[371030042,1752190247866,-300.0,0.00039999,31]
[371030043,1752190247875,-160.0,0.00039999,31]
[371030045,1752190247885,-151.0,0.00039999,31]
[371030047,1752190247894,-300.0,0.00039999,31]
[371030049,1752190247903,-151.0,0.00039999,31]
[371030051,1752190247912,-5798.19178837,0.00039999,31]
[371030053,1752190247922,-160.0,0.00039999,31]
[371030055,1752190247931,-300.0,0.00039999,31]
[371030057,1752190247941,-151.0,0.00039999,31]
[371030059,1752190247950,-300.0,0.00039999,31]
[371030061,1752190247960,-151.0,0.00039999,31]
[371030063,1752190247969,-160.0,0.00039999,31]
[371030065,1752190247978,-300.0,0.00039999,31]
[371030067,1752190247990,-151.0,0.00039999,31]
[371030069,1752190248000,-300.0,0.00039999,31]
[371030071,1752190248009,-6012.72488454,0.00039999,31]
[371030073,1752190248019,-151.0,0.00039999,31]
[371030075,1752190248028,-160.0,0.00039999,31]
[371030077,1752190248037,-151.0,0.00039999,31]
[371030079,1752190248046,-300.0,0.00039999,31]
[371030081,1752190248056,-6235.19570527,0.00039999,31]
[371030083,1752190248066,-151.0,0.00039999,31]
[371030085,1752190248075,-300.0,0.00039999,31]
[371030087,1752190248085,-6465.89794637,0.00039999,31]
[371030089,1752190248095,-151.0,0.00039999,31]
[371030091,1752190248105,-300.0,0.00039999,31]
[371030093,1752190248116,-6705.13617038,0.00039999,31]
[371030095,1752190248126,-500.0,0.00039999,31]
[371030097,1752190248136,-151.0,0.00039999,31]
[371030099,1752190248145,-151.0,0.00039999,31]
[371030101,1752190248155,-500.0,0.00039999,31]
[371030103,1752190248165,-151.0,0.00039999,31]
[371030105,1752190248175,-151.0,0.00039999,31]
[371030107,1752190248185,-2607.14630791,0.00039999,31]
[371030109,1752190248195,-151.0,0.00039999,31]
[371030111,1752190248205,-151.0,0.00039999,31]
[371030113,1752190248216,-500.0,0.00039999,31]
[371030115,1752190248226,-151.0,0.00039999,31]
[371030117,1752190248237,-151.0,0.00039999,31]
[371030119,1752190248248,-151.0,0.00039999,31]
[371030121,1752190248257,-500.0,0.00039999,31]
[371030123,1752190248267,-151.0,0.00039999,31]
[371030125,1752190248277,-151.0,0.00039999,31]
[371030127,1752190248287,-151.0,0.00039999,31]
[371030129,1752190248297,-151.0,0.00039999,31]
[371030131,1752190248307,-500.0,0.00039999,31]
[371030134,1752190248317,-151.0,0.00039999,31]
[371030136,1752190248327,-151.0,0.00039999,31]
[371030138,1752190248337,-151.0,0.00039999,31]
[371030140,1752190248347,-151.0,0.00039999,31]
[371030142,1752190248356,-500.0,0.00039999,31]
[371030144,1752190248366,-151.0,0.00039999,31]
[371030146,1752190248375,-151.0,0.00039999,31]
[371030148,1752190248385,-151.0,0.00039999,31]
[371030150,1752190248395,-151.0,0.00039999,31]
[371030152,1752190248405,-151.0,0.00039999,31]
[371030154,1752190248415,-300.0,0.00039999,31]
[371030156,1752190248424,-500.0,0.00039999,31]
[371030158,1752190248434,-151.0,0.00039999,31]
[371030159,1752190248444,-151.0,0.00039999,31]
[371030162,1752190248454,-151.0,0.00039999,31]
[371030164,1752190248464,-300.0,0.00039999,31]
[371030166,1752190248474,-151.0,0.00039999,31]
[371030168,1752190248487,-291.88675875,0.00039999,31]
[371030170,1752190248497,-151.0,0.00039999,31]
[371030172,1752190248510,-151.0,0.00039999,31]
[371030174,1752190248520,-300.0,0.00039999,31]
[371030176,1752190248530,-151.0,0.00039999,31]
[371030178,1752190248539,-151.0,0.00039999,31]
[371030180,1752190248549,-151.0,0.00039999,31]
[371030182,1752190248559,-151.0,0.00039999,31]
[371030184,1752190248568,-252.61436978,0.00039999,31]
[371030186,1752190248578,-151.0,0.00039999,31]
[371030188,1752190248587,-151.0,0.00039999,31]
[371030190,1752190248596,-300.0,0.00039999,31]
[371030192,1752190248605,-151.0,0.00039999,31]
[371030194,1752190248615,-151.0,0.00039999,31]
[371030196,1752190248624,-151.0,0.00039999,31]
[371030198,1752190248633,-300.0,0.00039999,31]
[371030200,1752190248643,-300.0,0.00039999,31]
[371030202,1752190248652,-151.0,0.00039999,31]
[371030203,1752190248662,-300.0,0.00039999,31]
[371030206,1752190248673,-311.1,0.00039999,31]
[371030207,1752190248682,-151.63789407,0.00039999,31]
[371030209,1752190248693,-300.0,0.00039999,31]
[371030211,1752190248703,-322.6107,0.00039999,31]
[371030214,1752190248712,-151.0,0.00039999,31]
[371030215,1752190248722,-300.0,0.00039999,31]
[371030218,1752190248734,-300.0,0.00039999,31]
[371030220,1752190248744,-266.2893,0.00039999,31]
[371030222,1752190248754,-151.0,0.00039999,31]
[371030224,1752190248763,-300.0,0.00039999,31]
[371030226,1752190248773,-300.0,0.00039999,31]
[371030228,1752190248783,-200.0,0.00039999,31]
[371030230,1752190248792,-300.0,0.00039999,31]
[371030232,1752190248802,-300.0,0.00039999,31]
[371030234,1752190248811,-300.0,0.00039999,31]
[371030236,1752190248821,-300.0,0.00039999,31]
[371030237,1752190248830,-300.0,0.00039999,31]
[371030239,1752190248840,-300.0,0.00039999,31]
[371030241,1752190248849,-300.0,0.00039999,31]
[371030243,1752190248858,-300.0,0.00039999,31]
[371030245,1752190248868,-300.0,0.00039999,31]
[371030248,1752190248878,-300.0,0.00039999,31]
[371030249,1752190248887,-300.0,0.00039999,31]
[371030252,1752190248898,-300.0,0.00039999,31]
[371030254,1752190248907,-300.0,0.00039999,31]
[371030256,1752190248917,-300.0,0.00039999,31]
[371030258,1752190248926,-300.0,0.00039999,31]
[371030260,1752190248936,-300.0,0.00039999,31]
[371030262,1752190248946,-300.0,0.00039999,31]
[371030264,1752190248955,-300.0,0.00039999,31]
[371030266,1752190248964,-300.0,0.00039999,31]
[371030268,1752190248973,-1834.3,0.00039999,120]
[371030270,1752190248984,-150.0,0.00039999,3]
[371030272,1752190248994,-246693.13295695,0.0004,5]
[371030274,1752190249009,-1301.18406247,0.0004,5]
[371030307,1752190249315,-153.0,0.00039092,30]
[371030309,1752190249326,-153.0,0.00039092,30]
[371030311,1752190249336,-153.0,0.00039092,30]
[371030313,1752190249346,-153.0,0.00039092,30]
[371030315,1752190249357,-153.0,0.00039092,30]
[371030317,1752190249367,-153.0,0.00039092,30]
[371030319,1752190249377,-2727.33281472,0.0004,5]
[371030322,1752190249389,-35300.0,0.0004,5]
[371030324,1752190249401,-2193.1776,0.0004,5]
[371030326,1752190249413,-22113.88343635,0.0004,5]
[371031767,1752190288688,202.99997,0.00027087,2]
[371031830,1752190710721,14224.15252466,0.00030137,120]
[371031970,1752190923608,2000.0,0.000275,120]
[371031972,1752191152111,-150.0,0.00025,2]
[371031973,1752191152132,-976.7040776,0.00025,2]
[371031976,1752191175301,158.3,0.00013699,2]
[371031977,1752191218163,-158.3,0.00021918,2]
[371031978,1752191218184,-216.72065957,0.00025,2]
[371031980,1752191243157,-317.57526283,0.00025,2]
[371031981,1752191243393,-15.83437272,0.00025,2]
[371031985,1752191347083,-162.16562728,0.00025,2]
[371031986,1752191347104,-281.5762867,0.00025,2]
[371031987,1752191347124,-150.0,0.0002541,2]
[371031988,1752191347145,-150.0,0.0002582,2]
[371031989,1752191347165,-150.0,0.0002622,2]
[371031990,1752191347186,-150.0,0.0002663,2]
[371031991,1752191347206,-150.0,0.0002704,2]
[371031992,1752191352169,-636.44285784,0.00027396,2]
[371031993,1752191372079,-563.55714216,0.00027396,2]
[371031994,1752191372102,-600.0,0.00027397,2]
[371031995,1752191372124,-284.76023993,0.00027397,2]
[371031996,1752191401202,150.0,0.00025,2]
[371031997,1752191401648,150.0,0.0002541,2]
[371031998,1752191402127,150.0,0.0002582,2]
[371031999,1752191402598,150.0,0.0002622,2]
[371032000,1752191403079,150.0,0.0002663,2]
[371032001,1752191403548,150.0,0.0002704,2]
[371032010,1752191432028,-150.0,0.0002745,3]
[371032012,1752191432038,-150.0,0.0002786,3]
[371032014,1752191432048,-385.0,0.0002827,2]
[371032017,1752191432059,-192.92,0.0002827,2]
[371032019,1752191432069,-140.2996,0.0002827,3]
[371032021,1752191432080,-9.7004,0.0002827,3]
[371032022,1752191432090,-216.98,0.000286,2]
[371032023,1752191432100,-150.0,0.0002867,3]
[371032024,1752191432110,-210.0,0.0002908,3]
[371032025,1752191432120,-110.80590505,0.0003,7]
[371032026,1752191432131,-1889.19409495,0.0003,7]
[371032027,1752191432141,-423.60590505,0.0003013,2]
[371032028,1752191432179,-409.12861,0.0003013,2]
[371032029,1752191432199,-1301.58727258,0.0003013,2]
[371032030,1752191432330,-1065.67821137,0.0003013,2]
[371032031,1752191432340,-158.3,0.00030137,2]
[371032032,1752191432349,-1000.0,0.00030195,30]
[371032033,1752191432359,-154.53,0.00030806,2]
[371032034,1752191432368,-1000.0,0.00031042,2]
[371032035,1752191432377,-349.0,0.00031229,3]
[371032036,1752191432387,-1456.02970544,0.0003123,28]
[371032037,1752191432399,-21.06929456,0.0003123,28]
[371032038,1752191432408,-837.44822953,0.00031651,2]
[371032039,1752191432418,-210.4254034,0.00031651,2]
[371032040,1752191432427,-160.0,0.00031651,2]
[371032041,1752191432437,-207.66122597,0.00031958,2]
[371032042,1752191432447,-101.16176004,0.00031973,2]
[371032043,1752191432458,-66.83823996,0.00031973,2]
[371032044,1752191432467,-811.11176004,0.00032129,2]
[371032045,1752191432479,-357.60441751,0.00032129,2]
[371032046,1752191432491,-1471.47,0.00032129,2]
[371032062,1752191437988,-3392.81382245,0.00032129,2]
[371032063,1752191437998,-2487.18617755,0.00032129,2]
[371032064,1752191438200,-1626.81382245,0.00032129,2]
[371032065,1752191438210,-150.0,0.00032129,2]
[371032066,1752191438220,-168.0,0.00033395,2]
[371032067,1752191438229,-176.01,0.00033423,2]
[371032068,1752191438238,-332.31,0.00033534,2]
[371032069,1752191438248,-500.0,0.00033823,2]
[371032070,1752191438257,-163.39,0.0003385,2]
[371032071,1752191438266,-1000.0,0.00033859,2]
[371032072,1752191438277,-250.0,0.00033912,2]
[371032073,1752191438286,-151.88,0.00033923,2]
[371032074,1752191438296,-168.0,0.00033949,2]
[371032075,1752191438306,-200.0,0.00034023,2]
[371032076,1752191438315,-422.97,0.0003407,2]
[371032077,1752191438325,-168.0,0.00034075,2]
[371032078,1752191438335,-530.85,0.00034106,2]
[371032079,1752191438344,-168.0,0.00034157,2]
[371032080,1752191438354,-230.0,0.00034214,2]
[371032081,1752191438363,-168.26,0.00034266,2]
[371032082,1752191438373,-3419.49,0.00034404,2]
[371032083,1752191438383,-650.95,0.000346,7]
[371032084,1752191438392,-1142.0,0.00034773,20]
[371032085,1752191438402,-11033.22680581,0.00035,2]
[371032086,1752191438417,-1125.42083747,0.00035,2]
[371032087,1752191438428,-814.2921585,0.00035,2]
[371032088,1752191438440,-2441.52764903,0.00035,2]
[371032089,1752191438452,-429.64084214,0.00035,2]
[371032090,1752191438463,-497.10284763,0.00035,2]
[371032092,1752191438474,-5403.02080014,0.00035,2]
[371032094,1752191438486,-300.0,0.00035,2]
[371032245,1752191440125,-1164.0,0.00032129,2]
[371032247,1752191440135,-314.35353275,0.00035,2]
[371032255,1752191440203,-818.53980001,0.00035,2]
[371032641,1752191444026,-34.97873777,0.00035,2]
[371032650,1752191444105,-11578.567,0.00035,2]
[371032652,1752191444116,-1311.63394477,0.00035,2]